Cogmind - Beta 17.1 @@@ ROGUE MODE // 2026.09.20 @ 01:49:12 Player: Caluan Result: Destroyed by 7V-BPT(R) with Subdweller Machine Gun Performance ------------- Evolutions (0) 0 Regions Visited (1) 200 Robots Destroyed (16) 80 Value Destroyed (279) 279 Prototype IDs (0) 0 Alien Tech Used (0) 0 Bonus (0) 0 TOTAL SCORE: 559 Bonus ------- None Cogmind --------- Core Integrity 0/250 Matter 300/300 Energy 75/100 System Corruption 0% Temperature Warning (350) Movement Core (50) Location -10/Materials Parts ------- > --- POWER (1) -------- (None) > --- PROPULSION (2) --- (None) > --- UTILITY (2) ------ (None) > --- WEAPON (2) ------- Medium Laser Light Assault Rifle > --- INVENTORY (5) ---- Huge Storage Unit Light Cannon Peak State ------------ > --- POWER ------------ Light Ion Engine > --- PROPULSION ------- Light Treads Light Treads > --- UTILITY ---------- Huge Storage Unit > --- WEAPON ----------- Medium Laser Light Assault Rifle > --- INVENTORY -------- Light Ion Engine Light Cannon [Rating: 6] Favorites ----------- Power Light Ion Engine Engine Light Ion Engine Propulsion Light Treads Treads Light Treads Utility Huge Storage Unit Storage Huge Storage Unit Weapon Assault Rifle Energy Gun Medium Laser Ballistic Gun Assault Rifle Build | -11 -10 ------- Run | Yrd Mat Slots Evolved . | . . Power . | . . Propulsion . | . . Utility . | . . Weapon . | . . Parts Attached 9 | 5 4 Power 2 | 1 1 Engine 2 | 1 1 Core . | . . Reactor . | . . Propulsion 2 | 2 . Treads 2 | 2 . Leg . | . . Wheel . | . . Hover . | . . Flight . | . . Utility 1 | . 1 Device . | . . Storage 1 | . 1 Processor . | . . Hackware . | . . Protection . | . . Artifact . | . . Weapon 4 | 2 2 Energy Gun 1 | . 1 Energy Cannon . | . . Ballistic Gun 3 | 2 1 Ballistic Cannon . | . . Launcher . | . . Special Weapon . | . . Impact Weapon . | . . Slashing Weapon . | . . Piercing Weapon . | . . Special Melee Weapon . | . . Unidentified Prototypes . | . . Parts Lost 6 | . 6 Power 2 | . 2 Propulsion 2 | . 2 Utility . | . . Weapon 2 | . 2 Highest Loss Streak 3 | . 3 To Critical Strikes . | . . Average Backups 1 | 1 2 Power . | . . Propulsion . | . . Utility . | . . Weapon 1 | . 1 Tool/Special . | . . Unused Backups 1 | . 1 Power . | . . Propulsion . | . . Utility . | . . Weapon 1 | . 1 Tool/Special . | . . Average Slot Usage (%) 72 | . 72 Engine 13 | . 13 Treads 27 | . 27 Storage 3 | . 3 Energy Gun 5 | . 5 Ballistic Gun 21 | . 21 Peak Build Rating 6 | 5 6 Average Rating 5 | 3 5 On Entrance 2 | . 5 Avg Prop Armor Cover (%) . | . . Naked Turns . | . . Heaviest Build 86 | 7 86 Greatest Support 40 | 40 40 Greatest Overweight (x) 4 | . 4 Average Overweight (x) . | . . Largest Inventory Capacity 25 | 5 25 Average Capacity 9 | 5 9 Most Carried 3 | 3 3 Average Carried 1 | 1 2 Final Capacity 5 | 5 5 Final Carried 2 | 2 2 Class Distribution -------------------- 100% | Mutant Dominant Class ---------------- Mutant | -10/Materials Resources | -11 -10 ----------- Run | Yrd Mat Matter Collected 495 | 240 255 Remotely . | . . Salvage Created 537 | . 537 Parts 30 | . 30 Haulers Intercepted 1 | . 1 Recyclers Shooed 1 | . 1 Parts Field Recycled . | . . Retrieved Matter . | . . Parts Self-Destructed . | . . Prevented . | . . Parts Restored . | . . Kills | -11 -10 ------- Run | Yrd Mat Combat Hostiles Destroyed 12 | . 12 Guns 12 | . 12 Classes Destroyed 5 | . 5 Worker 1 | . 1 Hauler 1 | . 1 Recycler 2 | . 2 Swarmer 6 | . 6 Grunt 6 | . 6 Best Kill Streak 5 | . 5 Combat Bots Only 5 | . 5 Max Kills in Single Turn 2 | . 2 Gunslinging 1 | . 1 Exploded . | . . Melee . | . . Uniques/NPCs Destroyed . | . . Combat | -11 -10 -------- Run | Yrd Mat Hostile Shots Fired 86 | . 86 Missed 22 | . 22 Hits 64 | . 64 Projectile 64 | . 64 Critical Strikes 1 | . 1 Damage Taken 912 | . 912 Core 268 | . 268 Absorbed by Shields . | . . Core Remaining (%) 100 | 100 . Volleys Fired 69 | . 69 Largest 2 | . 2 Hottest 70 | . 70 Shots Fired 133 | . 133 Gun 133 | . 133 Cannon . | . . Launcher . | . . Special . | . . Kinetic 95 | . 95 Thermal 38 | . 38 Explosive . | . . Electromagnetic . | . . Robot Hit Streak 8 | . 8 Robot Miss Streak 4 | . 4 Penetration Max . | . . Secondary Targets 3 | . 3 Max Gunslinging Chain 1 | . 1 Shots Hit Robots 88 | . 88 Core Hits 31 | . 31 Critical Kills . | . . Critical Parts Destroyed . | . . Critical Strikes 4 | . 4 Burn 4 | . 4 Melee Attacks . | . . Impact . | . . Slashing . | . . Piercing . | . . Sneak Attacks . | . . Combat Hostiles . | . . Follow-up Attacks . | . . Damage Inflicted 982 | . 982 Guns 975 | . 975 Cannons . | . . Explosions . | . . Melee . | . . Ramming 7 | . 7 Kinetic 677 | . 677 Thermal 298 | . 298 Explosive . | . . Electromagnetic . | . . Impact . | . . Slashing . | . . Piercing . | . . Highest Corruption . | . . Average Corruption . | . . Corruption Purged . | . . Corruption Blocked . | . . Overload Shots . | . . Overflow Damage . | . . Projectiles . | . . Explosions . | . . Melee . | . . Knockbacks . | . . Impact . | . . Kinetic . | . . Secondary . | . . Self-Inflicted Damage . | . . Shots . | . . Rammed 4 | . 4 Targets Rammed 4 | . 4 Kicked . | . . Crushed . | . . Highest Temperature 350 | . 350 Average Temperature 71 | . 71 Received Heat Transfer 523 | . 523 Effects 1 | . 1 Energy Bleed 1 | . 1 Siege Activations . | . . Martial Activations . | . . Shielding Activations . | . . Robots Disrupted . | . . Combat Hostiles . | . . Robots Corrupted . | . . Combat Hostiles . | . . Parts Fried . | . . Impact Corruptions . | . . Robots Melted . | . . Combat Hostiles . | . . Parts Melted 1 | . 1 Heat Transferred 1184 | . 1184 Parts Sabotaged . | . . Parts Stolen . | . . Parts Stripped . | . . Power Chain Reactions . | . . Alert | -11 -10 ------- Run | Yrd Mat Maximum Alert Level 1 | . 1 Low Security (%) 94 | 100 94 Level 1 5 | . 5 Level 2 . | . . Level 3 . | . . Level 4 . | . . Level 5 . | . . High Security . | . . Max Security . | . . Peak Influence 217 | . 217 Initial . | . . Average 76 | . 82 Influence Increases 418 | . 418 Destroy 0b10 Robot/C 240 | . 240 Destroy 0b10 Robot/NC 20 | . 20 Destroy Leader 52 | . 52 Destroy Structure 1 | . 1 Lose Combat Pursuer 105 | . 105 Influence Decreases 299 | . 299 Time Decay 239 | . 239 Lost Part 60 | . 60 Squads Dispatched 3 | . 3 Investigation . | . . Extermination . | . . Reinforcement 3 | . 3 Assault . | . . Garrison . | . . Intercept . | . . Searches Triggered . | . . Construction Impeded . | . . Haulers Reinforced . | . . Active Scanning Responses . | . . Cargo Convoy Interrupts . | . . Stealth | -11 -10 --------- Run | Yrd Mat Distress Signals . | . . Communications Jammed . | . . Distress Signals . | . . Times Spotted 27 | . 27 Peak Tracking Total 7 | . 7 Tactical Retreats 3 | . 3 Traps | -11 -10 ------- Run | Yrd Mat Traps Triggered 2 | . 2 Indirectly . | . . Trap Hack Attempts . | . . Triggered . | . . Disarmed . | . . Reprogrammed . | . . Reused . | . . Traps Extracted . | . . Installed . | . . Triggered . | . . Machines | -11 -10 ---------- Run | Yrd Mat Machines Disabled . | . . Max in Single Turn . | . . Machines Repaired . | . . Machines Dismantled . | . . Machines Sabotaged . | . . Overloaded Fab Kills . | . . Hacking | -11 -10 --------- Run | Yrd Mat Machines Accessed 1 | . 1 Terminals 1 | . 1 Fabricators . | . . Repair Stations . | . . Recycling Units . | . . Scanalyzers . | . . Garrison Access . | . . Total Hacks 2 | . 2 Successful 1 | . 1 Failed 1 | . 1 Catastrophic . | . . Database Lockouts . | . . Manual 2 | . 2 Terminals 2 | . 2 Fabricators . | . . Repair Stations . | . . Recycling Units . | . . Scanalyzers . | . . Garrison Access . | . . Terminal Hacks . | . . Fabricator Hacks . | . . Repair Station Hacks . | . . Recycling Unit Hacks . | . . Scanalyzer . | . . Garrison Access Hacks . | . . Unauthorized Hacks 1 | . 1 Terminals 1 | . 1 Botnet 1 | . 1 Fabricators . | . . Repair Stations . | . . Recycling Units . | . . Scanalyzers . | . . Garrison Access . | . . Data Cores Recovered . | . . Used . | . . Hacking Detections 1 | . 1 Full Trace Events . | . . Feedback Events . | . . Feedback Blocked . | . . Robot Schematics Acquired . | . . Robots Built . | . . Authchips . | . . Time . | . . Total Robot Build Rating . | . . Part Schematics Acquired . | . . Parts Built . | . . Authchips . | . . Time . | . . Total Part Build Rating . | . . Part Studies Acquired . | . . Parts Repaired . | . . Time . | . . Parts Recycled . | . . Recycled Matter . | . . Retrieved Matter . | . . Retrieved Components . | . . Parts Scanalyzed . | . . Part Schematics Acquired . | . . Parts Damaged . | . . Bothacking | -11 -10 ------------ Run | Yrd Mat Used RIF Installer . | . . Robots Hacked . | . . Non-combat . | . . Combat . | . . Robot Hacks Applied . | . . Relay Couplers Released . | . . Fabnet Peak Effective % . | . . Robots Rewired . | . . Allies Hacked . | . . Hacks Repelled . | . . Allies | -11 -10 -------- Run | Yrd Mat Total Allies . | . . Largest Group . | . . Highest-Rated Group . | . . Highest-Rated Ally . | . . Total Orders . | . . Ally Attacks . | . . Total Damage . | . . Kills . | . . Allies Corrupted . | . . Allies Melted . | . . Intel | -11 -10 ------- Run | Yrd Mat Active Infowar (turns) . | . . Robot Analysis Total . | . . Derelict Logs Recovered . | . . Drone Launches . | . . Drone Recoveries . | . . Exploration | -11 -10 ------------- Run | Yrd Mat Turns Passed 959 | 68 891 Spaces Moved 410 | 39 371 Core 6 | 5 1 Treads 404 | 34 370 Legs . | . . Wheels . | . . Hover . | . . Flight . | . . Fastest Speed 50 | 50 50 Average Speed 175 | 145 178 Slowest Speed 480 | 160 480 Overloaded Moves . | . . Propulsion Burnouts . | . . Robots Hopped . | . . Potential Cave-ins . | . . Cave-ins Triggered . | . . Exploration Rate (%) 28 | 3 53 Regions Visited 1 Branch Regions . Pre-discovered Areas . | . . Known Exits Taken . | . . Unknown Exits Taken 1 | 1 . Scrap Searched . | . . Spaces Dug . | . . Terrain Destroyed . | . . Melee . | . . Projectile . | . . AOE . | . . Terrain Rammed . | . . Walls Destroyed . | . . Machines Disabled . | . . Actions | -11 -10 --------- Run | Yrd Mat Total 521 | 50 471 Wait 19 | . 19 Move 409 | 38 371 Hop . | . . Pick Up 10 | 7 3 Fast Attach . | . . Attach 9 | 5 4 Detach 1 | . 1 Swap . | . . Drop . | . . Fire 69 | . 69 Melee . | . . Ram . | . . Kick . | . . Crush 4 | . 4 Escape Stasis . | . . Rewire . | . . Trap . | . . Miscellaneous . | . . Route ------- -11/Scrapyard -10/Materials (discovered 2 exits: [*Mat] / [*Min]) History --------- Turn | Location | Event 5 | -11/Scrapyard | Discovered new exit (range 16) 69 | -11/Scrapyard | Entered Materials 317 | -10/Materials | Build established: Mutant 356 | -10/Materials | Discovered new exit (range 13) 714 | -10/Materials | Discovered new exit (range 15) 869 | -10/Materials | Derelicts attacked the area 944 | -10/Materials | Core integrity fell below 50% 958 | -10/Materials | Core integrity fell below 20% 960 | -10/Materials | Destroyed by 7V-BPT(R) with Subdweller Machine Gun Last Messages --------------- rerouting patrols to target area. 00870_ K-01 Serf collects debris. 00883_ R-06 Scavenger collects Med. Matter Pod. 00885_ Acquired 3 matter. 00886_ K-01 Serf collects debris. 00887_ R-06 Scavenger collects Lgt. Ion Engine. 00890_ R-06 Scavenger collects Med. Matter Pod. 00890_ K-01 Serf collects debris. 00895_ R-06 Scavenger collects Sml. Matter Pod. 00895_ K-01 Serf collects debris. 00914_ K-01 Serf destroyed. 00929_ K-01 Serf collects debris. 00931_ K-01 Serf destroyed. 00937_ Lgt. Treads destroyed. 00956_ CW-NCV(R) suffers critical hit (Burn). 00958_ Lgt. Ion Engine destroyed. 00959_ CW-NCV(R) heat short circuits Sub. Monowheel. 00959_ Critical hit (Meltdown: +250). 00960_ Overheating: Energy bleed (-19). Map ----- +----------------------------------------------------+ | ?????????????????????????????????????# | | ?????????????????????????????????????# ##### | | ?????????????????????????????????????########### | | ?????????????????????????????????????# # | | ?????????????????????????????????????# """ # | | ?????????????????????????????????????# "T" # | | ????????????????????#????????????????#! # | | ???????????????????? ###+################+## | | ???????????######??# | | ???????????# ??# | | ???????????# ??# | | ???????????# ????????######## #######+##### | | ???????????# """"???????# ###??# | | ???????????# """"???????# #????# | | ?# ???????# """""#?????# """ #????# """ """ | | ?+ ??????# """""#?????# """"" ####?# """%""" | | ?# ?????# """""#?????# """"" # ### """ """ | | ?? ?????# """""#?????# """"" # ## """ """ | | ??? ????# """""#?????# """ # ## """ """ | | #####+##??# #?????# * # ?# | | #######+##############+####+############+ | | * !! #????????# | | % !%*! #????????# | | ! % #????????# | | """ R #;###;#######+#+##???????# | | ##### """ *= ; @ # #???????# | | ?? # """ = * R% # #???????# | | ??? + ########## u =# #???????# | | ??? # ! #????????# %*%# #???????# | | ????# ! ##???????#########+## #???????# | | ????# !* #??????#! | + + #???????# | | ????# #??????# # #########???????# | | ????# =** #??????# """ """ # #??????????###### | | ????# =%[ *#??????? """ """?# #?????????? # | | ????# !##+#+###??????""" """?# #????????? """ # | | ????# # % #???????"" ""??# #???????? """"" # | | ????# # """#??????????""??# #???????? """"" # | | ????# # """#??????????????# #???????# """"" # | | ????# # """#??????????????? ????????# """ + | | ????# # #??????????????? ????????# # | | ????# # """#??????????????? ????????# ## | | ????# + """#??????????????? ????????# #? | | ????+ # ""?????????????????#????????# ## | | ????# < # ???????????????????????????# + | | ????# # "???????????????????????????#########? | | ????##### "????????????????????????????????????? | | ????????# "????????????????????????????????????? | | ????????# ?????????????????????????????????????? | | ????????####?????????????????????????????????????? | | ?????????????????????????????????????????????????? | +----------------------------------------------------+ Best States ------------- Heat Dissipation 25 Energy Generation 10 Energy Capacity 125 Matter Stores 300 Matter Capacity 300 Sight Range 16 Terrain Scan Density 10 Evasion (%) 40 Recoil Reduction 2 Item Schematics ----------------- None Robot Schematics ------------------ None Fabricated ------------ Nothing Repaired ---------- Nothing Studied --------- None Alien Tech Used ----------------- None Achievements -------------- None Challenges ------------ None Game ------ Seed BeamStasisScythe Manual? 0 Play Time 00:08:44 Cumulative 296.2 hours Start 2026.09.20 @ 01:09:46 End 2026.09.20 @ 01:49:12 Sessions 1 Manual Loads 0 Difficulty Rogue Special Mode None Game No. 315 Rogue 315 Adventurer 0 Explorer 0 Win Type - Total 3 Types 3/0/0/0/0/0/0/0/0/0 Lore% 33 Gallery% 58 Achievement% 42 Wizard Run 0 Options --------- Layout 1 ASCII 0 Keyboard 0 Movement Numpad Keybinds 0 Fullscreen 2 Font 24/Smallcaps Map View 50x35 Zoom Use 0% Tactical HUD 1 Map Filters NONE Filters NONE Steam 1 RUN: 3db5a7e8-d40c-48af-8010-00b1ab99ae03